bitfinex-derivatives/quotes_BTCF0:USTF0_20251228
["timestamp","ask_amount","ask_price","bid_price","bid_amount"]
[1766891249786,0.02434165,87869.0,87858.0,0.0113898]
[1766891249987,0.11412496,87872.0,87858.0,0.0113898]
[1766891250189,0.02434327,87871.0,87858.0,0.0113898]
[1766891250486,0.02434327,87870.0,87858.0,0.0113898]
[1766891250686,0.11412496,87872.0,87858.0,0.0113898]
[1766891250687,0.02434368,87869.0,87858.0,0.0113898]
[1766891250878,0.11412496,87872.0,87858.0,0.0113898]
[1766891251079,0.02434368,87871.0,87858.0,0.0113898]
[1766891251278,0.02434368,87870.0,87858.0,0.0113898]
[1766891251479,0.02434368,87869.0,87858.0,0.0113898]
[1766891251681,0.11412496,87872.0,87858.0,0.0113898]
[1766891251872,0.02434566,87871.0,87858.0,0.0113898]
[1766891252077,0.02434566,87870.0,87858.0,0.0113898]
[1766891252277,0.02434566,87869.0,87858.0,0.0113898]
[1766891252489,0.11412496,87872.0,87858.0,0.0113898]
[1766891252696,0.02434805,87871.0,87858.0,0.0113898]
[1766891252988,0.02434805,87870.0,87858.0,0.0113898]
[1766891253190,0.02434805,87869.0,87858.0,0.0113898]
[1766891253486,0.11412496,87872.0,87858.0,0.0113898]
[1766891253680,0.02435085,87871.0,87858.0,0.0113898]
[1766891253881,0.02435085,87870.0,87858.0,0.0113898]
[1766891254082,0.02435085,87869.0,87858.0,0.0113898]
[1766891254276,0.11412496,87872.0,87858.0,0.0113898]
[1766891254496,0.02435434,87871.0,87858.0,0.0113898]
[1766891254688,0.02435434,87870.0,87858.0,0.0113898]
[1766891254889,0.02435434,87869.0,87858.0,0.0113898]
[1766891255090,0.02435434,87868.0,87858.0,0.0113898]
[1766891255286,0.11412496,87872.0,87858.0,0.0113898]
[1766891255491,0.02435874,87871.0,87858.0,0.0113898]
[1766891255688,0.02435874,87870.0,87858.0,0.0113898]
[1766891255889,0.02435874,87869.0,87858.0,0.0113898]
[1766891256193,0.02435874,87868.0,87858.0,0.0113898]
[1766891256392,0.02436245,87867.0,87858.0,0.0113898]
[1766891256595,0.11412496,87870.0,87858.0,0.0113898]
[1766891256793,0.02436245,87869.0,87858.0,0.0113898]
[1766891256984,0.02436245,87868.0,87858.0,0.0113898]
[1766891257186,0.11412496,87870.0,87858.0,0.0113898]
[1766891257389,0.02436245,87869.0,87858.0,0.0113898]
[1766891257586,0.02436245,87868.0,87858.0,0.0113898]
[1766891257882,0.02436245,87867.0,87858.0,0.0113898]
[1766891258085,0.02436245,87866.0,87858.0,0.0113898]
[1766891258286,0.02437028,87865.0,87858.0,0.0113898]
[1766891258487,0.11412496,87870.0,87858.0,0.0113898]
[1766891258783,0.02437039,87869.0,87858.0,0.0113898]
[1766891258988,0.02437039,87868.0,87858.0,0.0113898]
[1766891259188,0.02437039,87867.0,87858.0,0.0113898]
[1766891259389,0.02437039,87866.0,87858.0,0.0113898]
[1766891259589,0.02437039,87865.0,87858.0,0.0113898]
[1766891259790,0.11412496,87870.0,87858.0,0.0113898]
[1766891259989,0.02437635,87869.0,87858.0,0.0113898]
[1766891260189,0.11412496,87870.0,87858.0,0.0113898]
[1766891260795,0.17108496,87870.0,87858.0,0.0113898]
[1766891261490,0.17108496,87870.0,87860.0,0.0113896]
[1766891262008,0.17108496,87870.0,87856.0,0.05696]
[1766891262009,1e-08,87869.0,87856.0,0.05696]
[1766891262190,0.17108496,87870.0,87856.0,0.05696]
[1766891263193,0.17108496,87870.0,87862.0,0.0113893]
[1766891268106,0.17108496,87870.0,87859.0,0.0113898]
[1766891269903,0.05696,87870.0,87859.0,0.0113898]
[1766891273806,0.02427139,87869.0,87859.0,0.0113898]
[1766891274006,0.02427139,87868.0,87859.0,0.0113898]
[1766891274207,0.02427139,87867.0,87859.0,0.0113898]
[1766891274409,0.05696,87870.0,87859.0,0.0113898]
[1766891274708,0.02427148,87869.0,87859.0,0.0113898]
[1766891274908,0.02427148,87868.0,87859.0,0.0113898]
[1766891275109,0.02427148,87867.0,87859.0,0.0113898]
[1766891275305,0.05696,87870.0,87859.0,0.0113898]
[1766891275610,0.02427148,87869.0,87859.0,0.0113898]
[1766891275799,0.02427148,87868.0,87859.0,0.0113898]
[1766891276000,0.02427148,87867.0,87859.0,0.0113898]
[1766891276203,0.05696,87870.0,87859.0,0.0113898]
[1766891276403,0.02427148,87869.0,87859.0,0.0113898]
[1766891276605,0.02427148,87868.0,87859.0,0.0113898]
[1766891276806,0.02427148,87867.0,87859.0,0.0113898]
[1766891277017,0.05696,87870.0,87859.0,0.0113898]
[1766891277214,0.02422369,87869.0,87859.0,0.0113898]
[1766891277410,0.02422369,87868.0,87859.0,0.0113898]
[1766891277613,0.02422369,87867.0,87859.0,0.0113898]
[1766891277918,0.05696,87870.0,87859.0,0.0113898]
[1766891278108,0.02422369,87869.0,87859.0,0.0113898]
[1766891278406,0.05696,87870.0,87859.0,0.0113898]
[1766891278407,0.02422369,87868.0,87859.0,0.0113898]
[1766891278608,0.02422369,87867.0,87859.0,0.0113898]
[1766891278808,0.05696,87870.0,87859.0,0.0113898]
[1766891279010,0.0242237,87869.0,87859.0,0.0113898]
[1766891279210,0.0242237,87868.0,87859.0,0.0113898]
[1766891279516,0.0242237,87867.0,87859.0,0.0113898]
[1766891279714,0.05696,87870.0,87859.0,0.0113898]
[1766891280016,0.0242237,87869.0,87859.0,0.0113898]
[1766891280318,0.0242237,87868.0,87859.0,0.0113898]
[1766891280502,0.0242237,87867.0,87859.0,0.0113898]
[1766891280708,0.05696,87870.0,87859.0,0.0113898]
[1766891281005,0.02422378,87869.0,87859.0,0.0113898]
[1766891281207,0.02422378,87868.0,87859.0,0.0113898]
[1766891281409,0.02422378,87867.0,87859.0,0.0113898]
[1766891281611,0.05696,87870.0,87859.0,0.0113898]
[1766891281809,0.0242238,87869.0,87859.0,0.0113898]
[1766891282105,0.05696,87870.0,87859.0,0.0113898]
[1766891282106,0.0242238,87868.0,87859.0,0.0113898]
[1766891282303,0.0242238,87867.0,87859.0,0.0113898]
[1766891282505,0.05696,87870.0,87859.0,0.0113898]
[1766891294430,0.02412158,87869.0,87859.0,0.0113898]
[1766891294730,0.02412158,87868.0,87859.0,0.0113898]
[1766891294930,0.02412158,87867.0,87859.0,0.0113898]
[1766891295227,0.05696,87870.0,87859.0,0.0113898]
[1766891295428,0.02412159,87869.0,87859.0,0.0113898]
[1766891295727,0.02412159,87868.0,87859.0,0.0113898]
[1766891295927,0.02412159,87867.0,87859.0,0.0113898]
[1766891296129,0.05696,87870.0,87859.0,0.0113898]
[1766891296330,0.0241216,87869.0,87859.0,0.0113898]
[1766891296520,0.0241216,87868.0,87859.0,0.0113898]
[1766891296717,0.0241216,87867.0,87859.0,0.0113898]
[1766891296934,0.05696,87870.0,87859.0,0.0113898]
[1766891297124,0.02412162,87869.0,87859.0,0.0113898]
[1766891297432,0.02412162,87868.0,87859.0,0.0113898]
[1766891297730,0.02412162,87867.0,87859.0,0.0113898]
[1766891297933,0.05696,87870.0,87859.0,0.0113898]
[1766891298132,0.02412163,87869.0,87859.0,0.0113898]
[1766891298431,0.02412163,87868.0,87859.0,0.0113898]
[1766891298634,0.02412163,87867.0,87859.0,0.0113898]
[1766891298830,0.05696,87870.0,87859.0,0.0113898]
[1766891299032,0.02412164,87869.0,87859.0,0.0113898]
[1766891299231,0.02412164,87868.0,87859.0,0.0113898]
[1766891299536,0.02412164,87867.0,87859.0,0.0113898]
[1766891299731,0.05696,87870.0,87859.0,0.0113898]
[1766891300032,0.02412164,87869.0,87859.0,0.0113898]
[1766891300331,0.02412164,87868.0,87859.0,0.0113898]
[1766891300532,0.02412164,87867.0,87859.0,0.0113898]
[1766891300733,0.05696,87870.0,87859.0,0.0113898]
[1766891300925,0.02412172,87869.0,87859.0,0.0113898]
[1766891301126,0.02412172,87868.0,87859.0,0.0113898]
[1766891301327,0.02412172,87867.0,87859.0,0.0113898]
[1766891301627,0.05696,87870.0,87859.0,0.0113898]
[1766891301826,0.02412186,87869.0,87859.0,0.0113898]
[1766891302026,0.02412186,87868.0,87859.0,0.0113898]
[1766891302233,0.02412186,87867.0,87859.0,0.0113898]
[1766891302434,0.05696,87870.0,87859.0,0.0113898]
[1766891302630,0.02412187,87869.0,87859.0,0.0113898]
[1766891302825,0.02412187,87868.0,87859.0,0.0113898]
[1766891303024,0.02412187,87867.0,87859.0,0.0113898]
[1766891303225,0.05696,87870.0,87859.0,0.0113898]
[1766891303434,0.02412188,87869.0,87859.0,0.0113898]
[1766891303635,0.02412188,87868.0,87859.0,0.0113898]
[1766891303834,0.02412188,87867.0,87859.0,0.0113898]
[1766891304035,0.05696,87870.0,87859.0,0.0113898]
[1766891304235,0.02412188,87869.0,87859.0,0.0113898]
[1766891304433,0.05696,87870.0,87859.0,0.0113898]
[1766891304434,0.02412188,87868.0,87859.0,0.0113898]
[1766891304635,0.02412188,87867.0,87859.0,0.0113898]
[1766891304838,0.05696,87870.0,87859.0,0.0113898]
[1766891305035,0.02412189,87869.0,87859.0,0.0113898]
[1766891305236,0.02412189,87868.0,87859.0,0.0113898]
[1766891305436,0.02412189,87867.0,87859.0,0.0113898]
[1766891305737,0.05696,87870.0,87859.0,0.0113898]
[1766891306036,0.02412189,87869.0,87859.0,0.0113898]
[1766891306234,0.02412189,87868.0,87859.0,0.0113898]
[1766891306435,0.02412189,87867.0,87859.0,0.0113898]
[1766891306634,0.05696,87870.0,87859.0,0.0113898]
[1766891306833,0.0241219,87869.0,87859.0,0.0113898]
[1766891307044,0.0241219,87868.0,87859.0,0.0113898]
[1766891307240,0.0241219,87867.0,87859.0,0.0113898]
[1766891307534,0.02417896,87866.0,87859.0,0.0113898]
[1766891307732,0.02417896,87865.0,87859.0,0.0113898]
[1766891307931,0.05696,87870.0,87859.0,0.0113898]
[1766891308132,0.02417896,87869.0,87859.0,0.0113898]
[1766891308332,0.02417896,87868.0,87859.0,0.0113898]
[1766891308532,0.02417896,87867.0,87859.0,0.0113898]
[1766891308733,0.02417896,87866.0,87859.0,0.0113898]
[1766891308940,0.02417896,87865.0,87859.0,0.0113898]
[1766891309140,0.05696,87870.0,87859.0,0.0113898]
[1766891309341,0.02417897,87869.0,87859.0,0.0113898]
[1766891309641,0.02417897,87868.0,87859.0,0.0113898]
[1766891309939,0.02417897,87867.0,87859.0,0.0113898]
[1766891310139,0.02417897,87866.0,87859.0,0.0113898]
[1766891310341,0.02417897,87865.0,87859.0,0.0113898]
[1766891310541,0.05696,87870.0,87859.0,0.0113898]
[1766891310742,0.02417897,87869.0,87859.0,0.0113898]
[1766891311040,0.02417897,87868.0,87859.0,0.0113898]
[1766891311241,0.02417897,87867.0,87859.0,0.0113898]
[1766891311436,0.02417897,87866.0,87859.0,0.0113898]
[1766891311734,0.02417897,87865.0,87859.0,0.0113898]
[1766891312042,0.02417897,87864.0,87859.0,0.0113898]
[1766891312242,0.05696,87870.0,87859.0,0.0113898]
[1766891312441,0.02417891,87869.0,87859.0,0.0113898]
[1766891312632,0.02417891,87868.0,87859.0,0.0113898]
[1766891312932,0.02417891,87867.0,87859.0,0.0113898]
[1766891313133,0.02417891,87866.0,87859.0,0.0113898]
[1766891313333,0.02417891,87865.0,87859.0,0.0113898]
[1766891313534,0.02417891,87864.0,87859.0,0.0113898]
[1766891313736,0.05696,87870.0,87859.0,0.0113898]
[1766891313938,0.02417888,87869.0,87859.0,0.0113898]
[1766891314233,0.02417888,87868.0,87859.0,0.0113898]
[1766891314434,0.02417888,87867.0,87859.0,0.0113898]
[1766891314634,0.02417888,87866.0,87859.0,0.0113898]
[1766891314836,0.02417888,87865.0,87859.0,0.0113898]
[1766891315135,0.02417888,87864.0,87859.0,0.0113898]
[1766891315335,0.05696,87870.0,87859.0,0.0113898]
[1766891315542,0.02417884,87869.0,87859.0,0.0113898]
[1766891315842,0.02417884,87868.0,87859.0,0.0113898]
[1766891316043,0.02417884,87867.0,87859.0,0.0113898]
[1766891316243,0.02417884,87866.0,87859.0,0.0113898]
[1766891316442,0.02417884,87865.0,87859.0,0.0113898]
[1766891316644,0.02417884,87864.0,87859.0,0.0113898]
[1766891316844,0.05696,87870.0,87859.0,0.0113898]
[1766891317046,0.02417883,87869.0,87859.0,0.0113898]
[1766891317244,0.02417883,87868.0,87859.0,0.0113898]
[1766891317546,0.02417883,87867.0,87859.0,0.0113898]
[1766891317746,0.05696,87870.0,87859.0,0.0113898]
[1766891317946,0.02417883,87869.0,87859.0,0.0113898]
[1766891318147,0.05696,87870.0,87859.0,0.0113898]
[1766891318148,0.02417883,87868.0,87859.0,0.0113898]
[1766891318336,0.02417883,87867.0,87859.0,0.0113898]
[1766891318538,0.05696,87870.0,87859.0,0.0113898]
[1766891318739,0.02417883,87869.0,87859.0,0.0113898]
[1766891318940,0.02417883,87868.0,87859.0,0.0113898]
[1766891319243,0.02417883,87867.0,87859.0,0.0113898]
[1766891319443,0.05696,87870.0,87859.0,0.0113898]
[1766891319643,0.02417883,87869.0,87859.0,0.0113898]
[1766891319843,0.02417883,87868.0,87859.0,0.0113898]
[1766891320148,0.05696,87870.0,87859.0,0.0113898]
[1766891320149,0.02417883,87867.0,87859.0,0.0113898]
[1766891320352,0.05696,87870.0,87859.0,0.0113898]
[1766891320549,0.02417883,87869.0,87859.0,0.0113898]
[1766891320849,0.02417883,87868.0,87859.0,0.0113898]
[1766891321050,0.02417883,87867.0,87859.0,0.0113898]
[1766891321250,0.05696,87870.0,87859.0,0.0113898]
[1766891321453,0.02417883,87869.0,87859.0,0.0113898]
[1766891321752,0.02417883,87868.0,87859.0,0.0113898]
[1766891321953,0.02417883,87867.0,87859.0,0.0113898]
[1766891322151,0.05696,87870.0,87859.0,0.0113898]
[1766891322450,0.02417883,87869.0,87859.0,0.0113898]
[1766891322644,0.02417883,87868.0,87859.0,0.0113898]
[1766891322843,0.02417883,87867.0,87859.0,0.0113898]
[1766891323043,0.05696,87870.0,87859.0,0.0113898]
[1766891323343,0.02417883,87869.0,87859.0,0.0113898]
[1766891323544,0.02417883,87868.0,87859.0,0.0113898]
[1766891323744,0.02417883,87867.0,87859.0,0.0113898]
[1766891323955,0.05696,87870.0,87859.0,0.0113898]
[1766891324153,0.02417883,87869.0,87859.0,0.0113898]
[1766891324343,0.02417883,87868.0,87859.0,0.0113898]
[1766891324545,0.02417883,87867.0,87859.0,0.0113898]
[1766891324845,0.05696,87870.0,87859.0,0.0113898]
[1766891325044,0.02417883,87869.0,87859.0,0.0113898]
[1766891325246,0.02417883,87868.0,87859.0,0.0113898]
[1766891325448,0.02417883,87867.0,87859.0,0.0113898]
[1766891325647,0.05696,87870.0,87859.0,0.0113898]
[1766891325946,0.02417883,87869.0,87859.0,0.0113898]
[1766891326148,0.02417883,87868.0,87859.0,0.0113898]
[1766891326349,0.02417883,87867.0,87859.0,0.0113898]
[1766891326645,0.05696,87870.0,87859.0,0.0113898]
[1766891326848,0.02417883,87869.0,87859.0,0.0113898]
[1766891327054,0.02417883,87868.0,87859.0,0.0113898]
[1766891327256,0.02417883,87867.0,87859.0,0.0113898]
[1766891327460,0.05696,87870.0,87856.0,0.05696]
[1766891327659,0.02417884,87869.0,87856.0,0.05696]
[1766891327860,0.02417884,87868.0,87856.0,0.05696]
[1766891328154,0.02417884,87867.0,87856.0,0.05696]
[1766891328458,0.05696,87870.0,87859.0,0.0113898]
[1766891328658,0.02417884,87869.0,87859.0,0.0113898]
[1766891328850,0.02417884,87868.0,87859.0,0.0113898]
[1766891329052,0.02417884,87867.0,87859.0,0.0113898]
[1766891329352,0.05696,87870.0,87859.0,0.0113898]
[1766891329562,0.02417884,87869.0,87859.0,0.0113898]
[1766891329750,0.02417884,87868.0,87859.0,0.0113898]
[1766891329950,0.02417884,87867.0,87859.0,0.0113898]
[1766891330152,0.05696,87870.0,87859.0,0.0113898]
[1766891330353,0.02417884,87869.0,87859.0,0.0113898]
[1766891330554,0.02417884,87868.0,87859.0,0.0113898]
[1766891330753,0.02417884,87867.0,87859.0,0.0113898]
[1766891330953,0.05696,87870.0,87859.0,0.0113898]
[1766891331155,0.02417884,87869.0,87859.0,0.0113898]
[1766891331362,0.02417884,87868.0,87859.0,0.0113898]
[1766891331563,0.02417884,87867.0,87859.0,0.0113898]
[1766891331763,0.05696,87870.0,87859.0,0.0113898]
[1766891332065,0.02417884,87869.0,87859.0,0.0113898]
[1766891332263,0.02417884,87868.0,87859.0,0.0113898]
[1766891332466,0.02417884,87867.0,87859.0,0.0113898]
[1766891332763,0.17111826,87870.0,87859.0,0.0113898]
[1766891332964,0.02417885,87869.0,87859.0,0.0113898]
[1766891333164,0.02417885,87868.0,87859.0,0.0113898]
[1766891333364,0.02417885,87867.0,87859.0,0.0113898]
[1766891333571,0.17111826,87870.0,87859.0,0.0113898]
[1766891333756,0.02417885,87869.0,87859.0,0.0113898]
[1766891334054,0.02417885,87868.0,87859.0,0.0113898]
[1766891334251,0.02417885,87867.0,87859.0,0.0113898]
[1766891334461,0.17111826,87870.0,87856.0,0.05696]
[1766891334663,0.02417885,87869.0,87856.0,0.05696]
[1766891334961,0.02417885,87868.0,87856.0,0.05696]
[1766891335162,0.02417885,87867.0,87859.0,0.0113898]
[1766891335364,0.17111826,87870.0,87859.0,0.0113898]
[1766891335558,0.02417886,87869.0,87859.0,0.0113898]
[1766891335760,0.02417886,87868.0,87859.0,0.0113898]
[1766891335960,0.02417886,87867.0,87859.0,0.0113898]
[1766891336161,0.17111826,87870.0,87859.0,0.0113898]
[1766891336461,0.02417886,87869.0,87859.0,0.0113898]
[1766891336661,0.02417886,87868.0,87859.0,0.0113898]
[1766891336861,0.02417886,87867.0,87859.0,0.0113898]
[1766891337069,0.17111826,87870.0,87859.0,0.0113898]
[1766891337265,0.02417148,87869.0,87859.0,0.0113898]
[1766891337464,0.02417148,87868.0,87859.0,0.0113898]
[1766891337667,0.02417148,87867.0,87859.0,0.0113898]
[1766891337866,0.17111826,87870.0,87859.0,0.0113898]
[1766891338067,0.02417148,87869.0,87859.0,0.0113898]
[1766891338266,0.02417148,87868.0,87859.0,0.0113898]
[1766891338467,0.02417148,87867.0,87859.0,0.0113898]
[1766891338669,0.17111826,87870.0,87861.0,0.0113895]
[1766891338968,0.02417148,87869.0,87863.0,0.0113892]
[1766891339165,0.02417148,87868.0,87863.0,0.0113892]
[1766891339367,0.02417148,87867.0,87863.0,0.0113892]
[1766891339568,0.05696,87870.0,87863.0,0.0113892]
[1766891339769,0.02417124,87869.0,87856.0,0.05696]
[1766891339958,0.02417124,87868.0,87861.0,0.0113895]
[1766891340158,0.02417124,87867.0,87861.0,0.0113895]
[1766891340362,0.17111826,87870.0,87861.0,0.0113895]
[1766891340662,0.02417124,87869.0,87861.0,0.0113895]
[1766891340859,0.02417124,87868.0,87861.0,0.0113895]
[1766891341166,0.02417124,87867.0,87861.0,0.0113895]
[1766891341362,0.17111826,87870.0,87861.0,0.0113895]
[1766891341558,0.02417117,87869.0,87861.0,0.0113895]
[1766891341867,0.02417117,87868.0,87861.0,0.0113895]
[1766891342071,0.02417117,87867.0,87861.0,0.0113895]
[1766891342274,0.17111826,87870.0,87861.0,0.0113895]
[1766891342473,0.02417112,87869.0,87861.0,0.0113895]
[1766891342772,0.02417112,87868.0,87861.0,0.0113895]
[1766891342971,0.02417112,87867.0,87861.0,0.0113895]
[1766891343172,0.17111826,87870.0,87861.0,0.0113895]
[1766891343372,0.02417107,87869.0,87861.0,0.0113895]
[1766891343673,0.02417107,87868.0,87861.0,0.0113895]
[1766891343872,0.02417107,87867.0,87861.0,0.0113895]
[1766891344074,0.17111826,87870.0,87861.0,0.0113895]
[1766891344376,0.02417108,87869.0,87861.0,0.0113895]
[1766891344561,0.02417108,87868.0,87861.0,0.0113895]
[1766891344766,0.02417108,87867.0,87861.0,0.0113895]
[1766891344967,0.17111826,87870.0,87861.0,0.0113895]
[1766891345173,0.02417108,87869.0,87861.0,0.0113895]
[1766891345473,0.02417108,87868.0,87861.0,0.0113895]
[1766891345673,0.02417108,87867.0,87861.0,0.0113895]
[1766891345973,0.17111826,87870.0,87861.0,0.0113895]
[1766891346276,0.02417107,87869.0,87861.0,0.0113895]
[1766891346475,0.02417107,87868.0,87861.0,0.0113895]
[1766891346773,0.02417107,87867.0,87861.0,0.0113895]
[1766891346973,0.17111826,87870.0,87861.0,0.0113895]
[1766891347175,0.02417107,87869.0,87861.0,0.0113895]
[1766891347375,0.02417107,87868.0,87861.0,0.0113895]
[1766891347577,0.02417107,87867.0,87861.0,0.0113895]
[1766891347778,0.02417107,87866.0,87861.0,0.0113895]
[1766891348076,0.02417107,87865.0,87861.0,0.0113895]
[1766891348265,0.17111826,87870.0,87861.0,0.0113895]
[1766891360193,0.02469775,87869.0,87861.0,0.0113895]
[1766891360399,0.02469775,87868.0,87861.0,0.0113895]
[1766891360601,0.02469775,87867.0,87861.0,0.0113895]
[1766891360901,0.02469775,87866.0,87861.0,0.0113895]
[1766891361090,0.17111826,87870.0,87861.0,0.0113895]
[1766891362797,0.17111826,87870.0,87856.0,0.02116]
[1766891363002,0.17111826,87870.0,87854.0,0.05696]
[1766891363202,0.17111826,87870.0,87854.0,0.02116]
[1766891364100,0.17111826,87870.0,87844.0,0.01308627]
[1766891364402,0.17111826,87870.0,87847.0,0.0113913]
[1766891364603,0.011389,87865.0,87849.0,0.011391]
[1766891365204,0.11415826,87860.0,87846.0,0.0113914]
[1766891365399,0.11415826,87860.0,87848.0,0.0113912]
[1766891365602,0.11415826,87860.0,87848.0,0.0683512]
[1766891366101,0.11415826,87860.0,87846.0,0.0968]
[1766891366404,0.0113898,87859.0,87846.0,0.0968]
[1766891366703,0.11415826,87860.0,87846.0,0.0968]
[1766891367392,0.11415826,87856.0,87833.0,0.00010815]
[1766891367700,0.11415826,87850.0,87838.0,0.0113924]
[1766891367891,0.11415826,87850.0,87838.0,0.0683524]
[1766891369002,0.11415826,87850.0,87837.0,0.05696]
[1766891369304,0.11415826,87850.0,87838.0,0.0113925]
[1766891371004,0.05696,87854.0,87841.0,0.0113921]
[1766891371214,0.11415826,87850.0,87841.0,0.0113921]
[1766891371508,0.11415826,87850.0,87837.0,0.05696]
[1766891372109,0.05696,87854.0,87837.0,0.05696]
[1766891372313,0.11415826,87850.0,87837.0,0.05696]
[1766891373407,0.11415826,87850.0,87840.0,0.0113922]
[1766891374101,0.05696,87854.0,87842.0,0.0113919]
[1766891374303,0.02457305,87853.0,87842.0,0.0113919]
[1766891374503,0.05696,87854.0,87842.0,0.0113919]
[1766891375110,0.05696,87854.0,87844.0,0.0113917]
[1766891377714,0.02456733,87853.0,87844.0,0.0113917]
[1766891378006,0.05696,87854.0,87844.0,0.0113917]
[1766891378209,0.02456734,87853.0,87844.0,0.0113917]
[1766891378398,0.05696,87854.0,87844.0,0.0113917]
[1766891378596,0.0245663,87853.0,87844.0,0.0113917]
[1766891378795,0.05696,87854.0,87844.0,0.0113917]
[1766891378999,0.02456629,87853.0,87844.0,0.0113917]
[1766891379312,0.05696,87854.0,87844.0,0.0113917]
[1766891379511,0.02456571,87853.0,87844.0,0.0113917]
[1766891379710,0.05696,87854.0,87844.0,0.0113917]
[1766891379908,0.0245657,87853.0,87844.0,0.0113917]
[1766891380211,0.05696,87854.0,87844.0,0.0113917]
[1766891380410,0.02456552,87853.0,87844.0,0.0113917]
[1766891380611,0.05696,87854.0,87844.0,0.0113917]
[1766891380813,0.0245655,87853.0,87844.0,0.0113917]
[1766891381010,0.05696,87854.0,87844.0,0.0113917]
[1766891381213,0.02456528,87853.0,87844.0,0.0113917]
[1766891381413,0.05696,87854.0,87844.0,0.0113917]
[1766891381714,0.02456546,87853.0,87844.0,0.0113917]
[1766891381903,0.05696,87854.0,87844.0,0.0113917]
[1766891382214,0.11415826,87860.0,87850.0,0.0113908]
[1766891382215,0.057,87858.0,87850.0,0.0113908]
[1766891383102,0.11415826,87860.0,87850.0,0.0113908]
[1766891383297,0.17115826,87860.0,87850.0,0.0113908]
[1766891384101,0.11415826,87860.0,87850.0,0.0113908]
[1766891384313,0.17115826,87860.0,87850.0,0.0113908]
[1766891384612,0.11415826,87860.0,87850.0,0.0113908]
[1766891384811,0.057,87859.0,87850.0,0.0113908]
[1766891385416,0.11415826,87860.0,87850.0,0.0113908]
[1766891385708,0.057,87859.0,87850.0,0.0113908]
[1766891386713,0.11415826,87860.0,87850.0,0.0113908]
[1766891386915,0.057,87859.0,87850.0,0.0113908]
[1766891387209,0.011389,87866.0,87850.0,0.0113908]
[1766891387405,0.15384,87865.0,87850.0,0.0113908]
[1766891387810,0.057,87864.0,87850.0,0.0113908]
[1766891388108,0.057,87863.0,87850.0,0.0113908]
[1766891388714,0.057,87862.0,87850.0,0.0113908]
[1766891389213,0.11415826,87860.0,87847.0,0.0113913]
[1766891389510,0.17115826,87860.0,87847.0,0.0113913]
[1766891389718,0.17115826,87860.0,87844.0,0.0113917]
[1766891389911,0.11415826,87860.0,87844.0,0.0113917]
[1766891390107,0.17115826,87860.0,87844.0,0.0113917]
[1766891390309,0.11415826,87860.0,87844.0,0.0113917]
[1766891390612,0.17115826,87860.0,87844.0,0.0113917]
[1766891392717,0.11415826,87860.0,87844.0,0.0113917]
[1766891392916,0.057,87859.0,87844.0,0.0113917]
[1766891394221,0.02450258,87858.0,87844.0,0.0113917]
[1766891394520,0.057,87859.0,87844.0,0.0113917]
[1766891394521,0.02450258,87857.0,87844.0,0.0113917]
[1766891394711,0.02450258,87856.0,87841.0,0.011392]
[1766891394909,0.02450258,87855.0,87841.0,0.011392]
[1766891395118,0.02450258,87854.0,87841.0,0.011392]
[1766891395320,0.02450258,87853.0,87841.0,0.011392]
[1766891395521,0.02450258,87852.0,87841.0,0.011392]
[1766891395719,0.02450258,87851.0,87841.0,0.011392]
[1766891396018,0.0683898,87859.0,87841.0,0.011392]
[1766891396220,0.02451427,87858.0,87841.0,0.011392]
[1766891396415,0.02451427,87857.0,87841.0,0.011392]
[1766891396615,0.02451427,87856.0,87841.0,0.011392]
[1766891396820,0.02451427,87855.0,87841.0,0.011392]
[1766891397022,0.02451427,87854.0,87841.0,0.011392]
[1766891397221,0.02451427,87853.0,87841.0,0.011392]
[1766891397426,0.02451427,87852.0,87841.0,0.011392]
[1766891397721,0.02451427,87851.0,87841.0,0.011392]
[1766891397916,0.02451427,87850.0,87841.0,0.011392]
[1766891398113,0.02451427,87849.0,87841.0,0.011392]
[1766891398314,0.02451427,87848.0,87841.0,0.011392]
[1766891398515,0.0683898,87859.0,87841.0,0.011392]
[1766891398724,0.02468535,87858.0,87841.0,0.011392]
[1766891398924,0.02468535,87857.0,87841.0,0.011392]
[1766891399222,0.02468535,87856.0,87841.0,0.011392]
[1766891399425,0.02468535,87855.0,87841.0,0.011392]
[1766891399623,0.02468535,87854.0,87841.0,0.011392]
[1766891399823,0.02468535,87853.0,87841.0,0.011392]
[1766891400024,0.02468535,87852.0,87841.0,0.011392]
[1766891400223,0.02468535,87851.0,87841.0,0.011392]
[1766891400426,0.02468535,87850.0,87841.0,0.011392]
[1766891400626,0.02468535,87849.0,87841.0,0.011392]
[1766891400832,0.02468535,87848.0,87841.0,0.011392]
[1766891401128,0.0683898,87859.0,87843.0,0.0113918]
[1766891401328,0.02468645,87858.0,87843.0,0.0113918]
[1766891401529,0.02468645,87857.0,87843.0,0.0113918]
[1766891401827,0.02468645,87856.0,87843.0,0.0113918]
[1766891402017,0.02468645,87855.0,87843.0,0.0113918]
[1766891402216,5e-08,87854.0,87849.0,0.011391]
[1766891402420,0.06152922,87864.0,87849.0,0.011391]
[1766891402932,0.22675832,87865.0,87849.0,0.011391]
[1766891403127,0.06152922,87864.0,87849.0,0.011391]
[1766891403931,0.22675832,87865.0,87849.0,0.011391]
[1766891404131,0.06152922,87864.0,87849.0,0.011391]
[1766891407538,0.1652291,87865.0,87849.0,0.011391]
[1766891408928,0.1652291,87865.0,87846.0,0.0113914]
[1766891409238,0.0113893,87863.0,87846.0,0.0113914]
[1766891414141,0.02449717,87862.0,87846.0,0.0113914]
[1766891414341,0.02449717,87861.0,87846.0,0.0113914]
[1766891414642,0.02449717,87860.0,87846.0,0.0113914]
[1766891414841,0.02449717,87859.0,87846.0,0.0113914]
[1766891415042,0.02449717,87858.0,87846.0,0.0113914]
[1766891415232,0.02449717,87857.0,87846.0,0.0113914]
[1766891415432,0.0113893,87863.0,87846.0,0.0113914]
[1766891415433,0.02449717,87856.0,87846.0,0.0113914]
[1766891415641,0.02449717,87855.0,87846.0,0.0113914]
[1766891415850,0.02449717,87854.0,87846.0,0.0113914]
[1766891416143,0.02449717,87853.0,87846.0,0.0113914]
[1766891416340,0.02449717,87852.0,87846.0,0.0113914]
[1766891416541,0.02449717,87851.0,87846.0,0.0113914]
[1766891416743,0.0113893,87863.0,87846.0,0.0113914]
[1766891416944,0.02449726,87862.0,87846.0,0.0113914]
[1766891417242,0.02449726,87861.0,87846.0,0.0113914]
[1766891417442,0.02449726,87860.0,87846.0,0.0113914]
[1766891417643,0.02449726,87859.0,87846.0,0.0113914]
[1766891417840,0.02449726,87858.0,87846.0,0.0113914]
[1766891418045,0.02449726,87857.0,87846.0,0.0683514]
[1766891418244,0.02449726,87856.0,87846.0,0.0683514]
[1766891418450,0.02449726,87855.0,87846.0,0.05696]
[1766891418649,0.02449726,87854.0,87845.0,0.05973]
[1766891418845,0.02449726,87853.0,87845.0,0.05373]
[1766891419045,0.02449726,87852.0,87845.0,0.04773]
[1766891419246,0.02449726,87851.0,87845.0,0.04773]
[1766891419449,0.02449726,87850.0,87845.0,0.04773]